bitfinex-derivatives/quotes_SOLF0:USTF0_20250817
["timestamp","ask_amount","ask_price","bid_price","bid_amount"]
[1755459123439,0.03574156,192.08,192.07,2.85]
[1755459123637,2.97,192.16,192.07,2.85]
[1755459123835,2.97,192.16,192.12,2.85]
[1755459124034,2.97,192.16,192.07,2.85]
[1755459124738,2.97,192.16,192.07,5.48922307]
[1755459125041,2.97,192.16,192.11,2.85]
[1755459125237,2.97,192.16,192.12,2.85]
[1755459125437,2.97,192.16,192.13,2.85]
[1755459125942,2.97,192.16,192.11,2.85]
[1755459126135,2.97,192.15,192.11,2.85]
[1755459126340,2.97,192.14,192.11,2.85]
[1755459126637,2.97,192.13,192.1,2.85]
[1755459126842,2.97,192.13,192.11,0.03968215]
[1755459127038,2.97,192.13,192.12,2.85]
[1755459127542,2.97,192.2,192.12,2.85]
[1755459127745,2.97,192.18,192.12,2.85]
[1755459129637,2.97,192.18,192.13,2.85]
[1755459130237,2.97,192.17,192.13,8.0517]
[1755459130433,2.97,192.17,192.14,2.85]
[1755459130647,352.55,192.22,192.14,2.85]
[1755459130840,4.28750474,192.21,192.14,8.0514]
[1755459131038,2.97,192.19,192.15,2.85]
[1755459131232,2.97,192.18,192.15,2.85]
[1755459131740,2.97,192.21,192.15,2.85]
[1755459131933,2.63922307,192.28,192.18,2.85]
[1755459132139,2.97,192.22,192.18,2.85]
[1755459132442,2.97,192.26,192.19,2.85]
[1755459132645,2.97,192.25,192.22,2.85]
[1755459132843,2.97,192.24,192.23,2.85]
[1755459133043,2.97,192.25,192.24,2.85]
[1755459133943,128.48,192.31,192.24,2.85]
[1755459134143,2.97,192.29,192.23,2.85]
[1755459134345,2.97,192.27,192.23,2.85]
[1755459134539,2.97,192.26,192.23,2.85]
[1755459134937,128.48,192.31,192.22,0.03910298]
[1755459134938,2.97,192.27,192.22,0.03910298]
[1755459135135,2.97,192.27,192.23,2.85]
[1755459136347,2.97,192.27,192.24,2.85]
[1755459136940,2.97,192.27,192.24,5.1986]
[1755459137142,2.97,192.27,192.25,2.85]
[1755459137342,128.4,192.33,192.25,2.85]
[1755459137542,4.09387981,192.32,192.27,3.03]
[1755459137743,2.89,192.33,192.27,3.03]
[1755459137943,2.89,192.33,192.28,5.1975]
[1755459138143,2.89,192.33,192.29,3.03]
[1755459138551,64.69365613,192.36,192.29,5.66922307]
[1755459138743,4.0953665,192.35,192.29,5.66922307]
[1755459138944,4.0953665,192.34,192.3,3.03]
[1755459139145,2.89,192.33,192.29,2.63922307]
[1755459139647,2.89,192.33,192.32,3.03]
[1755459140556,2.89,192.37,192.3,3.03]
[1755459140852,2.89,192.35,192.3,3.03]
[1755459141253,2.89,192.35,192.31,0.03475702]
[1755459143158,128.46,192.38,192.31,0.03475702]
[1755459143353,4.09436484,192.37,192.31,0.03475702]
[1755459143556,2.89,192.35,192.31,0.03475702]
[1755459144345,5.52922307,192.35,192.31,0.03475702]
[1755459144547,2.89,192.33,192.31,0.03475702]
[1755459145160,2.89,192.34,192.31,0.03475702]
[1755459145859,128.26,192.37,192.32,3.03]
[1755459146056,2.89,192.34,192.33,3.03]
[1755459147951,2.89,192.37,192.34,3.03]
[1755459148245,2.89,192.41,192.34,3.03]
[1755459152065,2.89,192.41,192.34,8.2258]
[1755459152356,2.89,192.41,192.35,5.66922307]
[1755459152564,2.89,192.43,192.36,3.03]
[1755459152762,2.89,192.43,192.37,5.1951]
[1755459152961,128.4,192.44,192.38,3.03]
[1755459153162,2.89,192.42,192.38,3.03]
[1755459156560,128.42,192.45,192.38,3.03]
[1755459156767,2.89,192.44,192.38,3.03]
[1755459157068,128.42,192.45,192.39,3.03]
[1755459157363,2.89,192.44,192.39,3.06280422]
[1755459157568,2.89,192.44,192.39,0.03280422]
[1755459163264,2.89,192.41,192.39,0.03280422]
[1755459164472,2.89,192.4,192.39,3.06280422]
[1755459165369,128.3,192.43,192.39,3.06280422]
[1755459165563,2.89,192.43,192.39,3.06280422]
[1755459165759,2.89,192.43,192.39,3.03]
[1755459166166,128.3,192.44,192.4,3.03]
[1755459166373,2.89,192.43,192.4,3.03]
[1755459166965,2.89,192.42,192.41,3.03]
[1755459168669,2.88,192.43,192.4,2.79383531]
[1755459169269,2.88,192.42,192.41,2.76]
[1755459171078,128.3,192.44,192.41,2.76]
[1755459171376,2.88,192.43,192.42,2.76]
[1755459179178,6.98161919,192.43,192.42,2.76]
[1755459180374,2.88,192.42,192.41,2.76]
[1755459180569,2.88,192.43,192.41,2.76]
[1755459181374,2.88,192.43,192.4,2.79383531]
[1755459181574,2.88,192.42,192.41,2.76]
[1755459182581,128.3,192.44,192.42,2.76]
[1755459182782,2.88,192.5,192.42,2.76]
[1755459182984,4.10776591,192.49,192.44,2.76]
[1755459183175,2.88,192.48,192.44,2.76]
[1755459183779,127.94,192.5,192.44,2.76]
[1755459183985,2.88,192.48,192.45,2.76]
[1755459184283,2.88,192.49,192.47,2.76]
[1755459184588,2.88,192.48,192.47,2.76]
[1755459185492,2.88,192.48,192.41,2.76]
[1755459189482,2.88,192.46,192.41,2.76]
[1755459189687,2.88,192.46,192.42,2.76]
[1755459189896,2.88,192.46,192.43,0.0356107]
[1755459190801,2.88,192.46,192.43,2.7956107]
[1755459192496,2.88,192.46,192.43,0.0356107]
[1755459192497,2.88,192.45,192.43,0.0356107]
[1755459192699,4.01550368,192.44,192.33,2.76]
[1755459193002,2.88,192.42,192.33,2.76]
[1755459193601,4.01568915,192.41,192.33,2.76]
[1755459193804,2.88,192.39,192.33,2.76]
[1755459194102,7.29121063,192.38,192.33,2.76]
[1755459194402,2.88,192.37,192.33,2.76]
[1755459195302,0.03540121,192.39,192.33,2.76]
[1755459195303,2.88,192.38,192.33,2.76]
[1755459195804,0.03540121,192.39,192.33,2.76]
[1755459196004,2.88,192.37,192.33,2.76]
[1755459197301,0.03540121,192.39,192.3,5.1971]
[1755459197507,5.51922307,192.37,192.29,2.76]
[1755459197702,4.42769022,192.36,192.29,2.76]
[1755459198009,3.06,192.34,192.3,2.77]
[1755459198406,3.06,192.34,192.28,2.77]
[1755459198701,127.97715902,192.35,192.21,2.77]
[1755459198702,2.63922307,192.31,192.21,2.77]
[1755459198903,4.42419647,192.3,192.21,2.77]
[1755459199098,0.03498728,192.28,192.21,2.77]
[1755459199407,3.06,192.27,192.21,2.77]
[1755459202298,3.06,192.27,192.19,2.77]
[1755459202698,3.06,192.27,192.16,2.77]
[1755459202899,2.63922307,192.25,192.16,2.77]
[1755459203101,3.06,192.24,192.16,2.77]
[1755459205606,2.63922307,192.22,192.12,2.77]
[1755459205805,3.06,192.21,192.12,2.77]
[1755459206502,3.06,192.17,192.13,2.77]
[1755459207805,3.06,192.17,192.09,2.77]
[1755459208609,3.06,192.17,192.1,2.77]
[1755459219012,3.06,192.17,192.11,2.77]
[1755459222210,0.0387894,192.18,192.14,2.77]
[1755459222414,3.06,192.17,192.12,2.77]
[1755459222619,3.06,192.16,192.12,2.77]
[1755459223212,3.06,192.16,192.03,10.4086]
[1755459223409,3.06,192.16,192.13,2.77]
[1755459224013,3.09827556,192.16,192.13,2.77]
[1755459225320,0.03827556,192.16,192.11,2.77]
[1755459225623,0.03827556,192.16,192.15,7.9712]
[1755459225822,3.06,192.25,192.15,2.77]
[1755459226124,3.06,192.25,192.18,2.77]
[1755459227118,3.06,192.25,192.2,0.03671676]
[1755459227323,3.06,192.25,192.21,2.77]
[1755459228027,2.91,192.24,192.21,2.85]
[1755459229226,2.91,192.27,192.2,2.88671676]
[1755459229725,2.91,192.25,192.2,2.88671676]
[1755459230328,2.91,192.25,192.2,0.03671676]
[1755459230525,2.91,192.25,192.21,2.85]
[1755459230927,2.91,192.25,192.22,2.85]
[1755459231228,2.91,192.25,192.2,0.03671676]
[1755459231527,2.91,192.25,192.21,2.85]
[1755459233324,4.39263823,192.24,192.21,2.85]
[1755459233532,2.91,192.22,192.21,2.85]
[1755459234931,2.91,192.24,192.21,2.85]
[1755459235335,4.40076713,192.23,192.21,2.85]
[1755459235527,2.91,192.24,192.21,2.85]
[1755459235827,7.31077287,192.23,192.21,2.85]
[1755459236035,2.91,192.23,192.21,2.85]
[1755459236933,2.91,192.25,192.21,2.85]
[1755459237134,7.31459781,192.24,192.21,2.85]
[1755459237330,4.40459781,192.23,192.21,2.85]
[1755459237839,4.40459781,192.23,192.2,0.03671676]
[1755459238029,2.91,192.21,192.2,0.03671676]
[1755459238229,2.91,192.24,192.2,0.03671676]
[1755459238429,7.32257333,192.23,192.21,2.85]
[1755459238642,2.91,192.23,192.22,2.85]
[1755459239329,2.91,192.23,192.2,0.03671676]
[1755459239532,7.32257333,192.22,192.21,2.85]
[1755459240629,4.41257333,192.22,192.21,2.85]
[1755459240828,7.32257333,192.23,192.21,2.85]
[1755459241032,4.41257333,192.22,192.21,2.85]
[1755459241232,2.91,192.21,192.2,0.03671676]
[1755459241437,7.32905612,192.21,192.2,0.03671676]
[1755459241831,4.41905612,192.21,192.2,2.88671676]
[1755459242027,7.32905612,192.21,192.2,0.03671676]
[1755459242226,7.32905612,192.21,192.2,2.88671676]
[1755459242432,7.32905612,192.21,192.2,0.03671676]
[1755459242838,2.91,192.2,192.16,2.85]
[1755459243038,4.41905612,192.19,192.16,2.85]
[1755459243240,4.41905612,192.18,192.16,2.85]
[1755459243537,2.91,192.2,192.16,2.85]
[1755459243538,4.41905612,192.17,192.16,2.85]
[1755459243738,8.44431211,192.28,192.16,2.85]
[1755459243939,7.28117552,192.27,192.17,5.2006]
[1755459244138,2.91,192.25,192.18,2.85]
[1755459244341,4.40418389,192.24,192.18,2.85]
[1755459244644,2.94300837,192.24,192.18,2.85]
[1755459245541,2.91,192.22,192.15,2.85]
[1755459247336,2.91,192.19,192.15,2.85]
[1755459247727,2.94488676,192.2,192.15,2.85]
[1755459248134,2.91,192.19,192.15,2.85]
[1755459248944,2.91,192.19,192.13,2.85]
[1755459249437,2.91,192.19,192.08,2.63922307]
[1755459249741,2.91,192.19,192.09,2.85]
[1755459250541,2.91,192.17,192.09,2.85]
[1755459250845,0.03478767,192.16,192.09,2.85]
[1755459251043,2.91,192.15,192.09,2.85]
[1755459253647,2.91,192.15,192.1,2.85]
[1755459253941,0.03478767,192.16,192.1,2.85]
[1755459254146,2.91,192.15,192.1,2.85]
[1755459254447,2.91,192.15,192.11,2.85]
[1755459254636,2.91,192.15,192.09,2.85]
[1755459255946,2.91,192.15,192.09,5.48922307]
[1755459256147,0.03478767,192.16,192.1,2.85]
[1755459256344,0.03478767,192.16,192.12,2.63922307]
[1755459256645,0.03478767,192.16,192.13,2.85]
[1755459256846,2.91,192.19,192.13,2.85]
[1755459258250,2.91,192.19,192.09,5.57922307]
[1755459258449,2.91,192.19,192.09,2.63922307]
[1755459258652,2.91,192.19,192.1,2.94]
[1755459260245,2.91,192.19,192.05,2.63922307]
[1755459260441,2.63922307,192.2,192.06,2.94]
[1755459260442,2.97,192.16,192.06,2.94]
[1755459261042,2.97,192.16,192.09,2.94]
[1755459265755,2.97,192.16,192.09,8.1428]
[1755459265956,2.97,192.16,192.1,2.94]
[1755459266556,2.97,192.16,192.11,2.94]
[1755459266959,2.97,192.18,192.11,2.94]
[1755459267850,2.97,192.18,192.09,2.94]
[1755459268256,3.67914229,192.17,192.09,2.94]
[1755459268454,2.97,192.17,192.09,2.94]
[1755459269559,131.15,192.17,192.09,2.94]
[1755459269757,2.97,192.16,192.09,2.94]
[1755459273962,2.97,192.16,192.07,2.94]
[1755459274760,3.69201463,192.15,192.07,2.94]
[1755459275062,2.97,192.14,192.07,2.94]
[1755459276663,2.97,192.14,192.04,2.94]
[1755459278562,1.30073641,192.13,192.04,2.94]
[1755459278758,2.97,192.12,192.04,2.94]
[1755459279958,4.748874,192.11,192.04,2.94]
[1755459280154,2.97,192.1,192.04,2.94]
[1755459281655,2.97,192.1,192.04,5.2041]
[1755459281965,2.97,192.12,192.05,2.94]
[1755459282164,2.97,192.1,192.02,2.63922307]
[1755459282465,4.74909554,192.09,192.06,2.94]
[1755459282666,2.97,192.12,192.06,2.94]
[1755459282967,2.97,192.08,192.0,2.94]
[1755459283167,2.97,192.06,192.0,2.94]
[1755459284462,8.90609933,192.05,191.94,2.94]
[1755459284659,2.97,192.03,191.94,2.94]
[1755459284867,1.30161535,192.02,191.94,2.94]
[1755459285069,5.93507306,192.01,191.94,2.94]
[1755459285261,2.97,192.0,191.94,2.94]
[1755459285463,5.60922307,192.0,191.89,2.94]
[1755459285664,2.97,191.99,191.89,2.94]
[1755459286962,131.41,191.99,191.89,2.94]
[1755459287165,2.97,191.98,191.89,2.94]
[1755459287370,2.97,191.98,191.9,2.94]
[1755459287769,2.97,191.98,191.88,2.63922307]
[1755459288073,2.97,192.0,191.92,2.76]
[1755459288468,128.52,192.01,191.92,2.76]
[1755459288674,131.49,192.01,191.92,2.76]
[1755459288978,2.97,192.01,191.94,2.76]
[1755459293082,128.5,192.02,191.8,0.90684039]
[1755459293275,18.20922307,192.0,191.81,2.76]
[1755459293574,2.97,191.91,191.84,2.76]
[1755459296171,2.63922307,191.91,191.84,2.76]
[1755459296372,2.97,191.9,191.84,2.76]
[1755459297175,2.97,191.88,191.77,2.76]
[1755459297383,2.97,191.88,191.78,2.76]
[1755459297572,2.97,191.88,191.78,5.39922307]
[1755459297881,2.97,191.88,191.8,5.2104]
[1755459298074,2.97,191.88,191.81,2.76]
[1755459298468,2.97,191.9,191.81,5.2103]
[1755459298677,2.97,191.9,191.82,2.76]
[1755459299082,2.97,191.9,191.83,2.76]
[1755459299574,2.97,191.9,191.79,2.76]
[1755459299575,2.63922307,191.89,191.79,2.76]
[1755459299780,2.97,191.88,191.79,2.76]
[1755459300174,2.97,191.92,191.8,5.39922307]
[1755459300376,2.97,191.94,191.84,2.76]
[1755459300675,2.97,191.94,191.87,2.76]
[1755459301282,2.63922307,191.91,191.83,2.76]
[1755459301487,2.97,191.9,191.83,2.76]
[1755459303374,2.97,191.9,191.79,2.63922307]
[1755459303375,5.60922307,191.9,191.79,2.63922307]
[1755459303579,2.97,191.89,191.8,2.76]
[1755459303782,135.79,191.95,191.83,2.76]
[1755459303987,2.97,191.93,191.85,2.76]
[1755459304486,2.97,191.93,191.89,2.76]
[1755459304685,2.97,191.96,191.89,2.76]
[1755459305086,4.65102709,191.95,191.89,2.76]
[1755459305284,2.97,191.96,191.89,2.76]
[1755459306492,2.97,191.94,191.87,2.76]
[1755459306796,2.97,191.92,191.87,2.76]
[1755459307095,135.93,191.92,191.87,2.76]
[1755459307283,2.97,191.91,191.81,2.63922307]
[1755459307485,2.97,191.91,191.84,2.76]
[1755459308595,2.97,191.93,191.84,2.76]
[1755459308796,132.92,191.95,191.84,2.76]
[1755459308993,349.98,191.97,191.87,2.76]
[1755459309593,352.95,191.97,191.87,2.76]
[1755459310994,352.95,191.97,191.91,2.76]
[1755459312492,2.97,192.0,191.91,2.76]
[1755459312803,2.97,192.0,191.94,5.2066]
[1755459312997,2.97,192.0,191.95,2.76]
[1755459313395,2.97,191.99,191.95,2.76]
[1755459314400,132.78,192.03,191.83,2.76]
[1755459314401,2.97,192.02,191.83,2.76]
[1755459314600,2.97,192.0,191.9,2.76]
[1755459314809,2.97,191.98,191.9,2.76]
[1755459315098,132.78,192.03,191.93,2.76]
[1755459315304,2.97,192.01,191.93,2.76]
[1755459315500,2.97,191.99,191.93,2.76]
[1755459315904,2.97,191.99,191.93,7.967]
[1755459316207,2.97,191.99,191.94,2.76]
[1755459316393,2.97,192.02,191.94,2.76]
[1755459316592,2.97,192.0,191.94,2.76]
[1755459316801,4.83067184,191.99,191.94,2.76]
[1755459317003,4.83067184,191.98,191.94,2.76]
[1755459317199,2.97,191.99,191.94,2.76]
[1755459317401,132.78,192.03,191.9,2.76]
[1755459317402,7.80293711,191.98,191.9,2.76]
[1755459317602,2.97,191.98,191.9,2.76]
[1755459318105,4.83245688,191.97,191.9,2.79]
[1755459318302,3.02,191.94,191.9,2.79]
[1755459319308,3.02,191.93,191.91,2.79]
[1755459319507,3.02,191.93,191.92,2.79]
[1755459320609,3.02,191.93,191.87,2.79]
[1755459321309,3.02,191.91,191.84,2.79]
[1755459322202,4.62539041,191.9,191.84,2.79]
[1755459322406,3.02,191.91,191.84,2.79]
[1755459322604,3.02,191.91,191.85,5.2092]
[1755459322910,3.02,191.99,191.86,2.79]
[1755459323106,9.65413631,191.98,191.86,7.9988]
[1755459323311,3.02,191.96,191.86,2.79]
[1755459323612,3.02,191.94,191.86,2.79]
[1755459323807,8.95085719,191.93,191.86,2.79]
[1755459324008,1.30220783,191.92,191.86,2.79]
[1755459324210,4.32220783,191.91,191.86,2.79]
[1755459324416,1.30220783,191.9,191.86,2.79]
[1755459324711,1.30220783,191.9,191.82,4.13962202]
[1755459324712,3.02,191.91,191.88,2.79]
[1755459324915,1.30210854,191.9,191.88,2.79]
[1755459325105,3.02,191.91,191.88,2.79]
[1755459325306,1.30210854,191.9,191.89,2.79]
[1755459326214,1.30210854,191.9,191.81,2.79]
[1755459326512,3.02,191.88,191.81,2.79]
[1755459326813,4.32210854,191.87,191.81,8.0002]
[1755459327017,4.32210854,191.86,191.82,2.79]
[1755459327207,3.02,191.86,191.82,2.79]
[1755459327406,3.02,191.86,191.83,2.79]
[1755459327607,3.02,191.9,191.83,2.79]
[1755459327808,1.30222617,191.89,191.83,2.79]
[1755459328009,4.32222617,191.88,191.83,7.9996]
[1755459328204,3.02,191.87,191.83,5.2096]
[1755459328411,4.13962202,191.96,191.84,7.9996]
[1755459328612,3.02,191.94,191.85,2.79]
[1755459328812,3.02,191.92,191.85,2.79]
[1755459329013,3.02,191.9,191.85,2.79]
[1755459329310,3.02,191.88,191.86,2.79]
[1755459329508,4.13962202,191.96,191.86,2.79]
[1755459329509,3.02,191.87,191.86,2.79]
[1755459329905,3.02,191.88,191.87,2.79]
[1755459330105,4.32228907,191.88,191.87,2.79]
[1755459330306,3.02,191.88,191.85,2.79]
[1755459330610,3.02,191.87,191.86,2.79]
[1755459331417,3.02,191.98,191.86,2.79]
[1755459331614,3.02,191.96,191.86,2.79]
[1755459331915,3.02,191.94,191.86,2.79]
[1755459332216,3.02,191.92,191.86,2.79]
[1755459332415,5.94786181,191.91,191.86,5.209]
[1755459332607,3.02,191.89,191.88,2.79]
[1755459334612,3.02,191.97,191.88,5.44992089]
[1755459334811,3.02,191.95,191.89,2.79]
[1755459335210,3.02,191.95,191.9,5.2077]
[1755459335514,2.65992089,191.99,191.86,2.65992089]
[1755459335718,3.02,191.97,191.87,2.79]
[1755459335914,3.02,191.95,191.89,2.79]
[1755459336116,3.02,191.93,191.83,2.79]
[1755459336319,3.02,191.91,191.85,2.79]
[1755459336613,3.02,191.91,191.87,2.79]
[1755459336817,3.02,191.91,191.81,4.13818527]
[1755459337020,3.02,191.98,191.88,2.79]
[1755459337222,3.02,191.96,191.88,2.79]
[1755459337421,3.02,191.94,191.88,2.79]
[1755459337621,119.02323022,192.02,191.86,2.79]
[1755459337622,3.02,191.92,191.86,2.79]
[1755459338513,3.02,191.92,191.82,5.2099]
[1755459338817,3.02,191.9,191.82,2.79]
[1755459339220,3.02,191.9,191.82,5.21]
[1755459339424,3.02,191.9,191.83,2.79]
[1755459341615,1.30249934,191.89,191.83,2.79]
[1755459341819,3.02,191.88,191.8,2.79]
[1755459342424,3.02,191.88,191.81,2.79]
[1755459343420,3.02,191.88,191.77,4.13818527]
[1755459343628,3.02,191.88,191.82,2.79]
[1755459344025,4.13818527,191.96,191.82,2.79]
[1755459344226,3.02,191.94,191.82,2.79]
[1755459344527,3.02,191.92,191.82,2.79]
[1755459345029,3.02,191.92,191.84,5.2095]
[1755459345324,3.02,191.92,191.85,2.79]
[1755459347431,3.02,191.92,191.85,7.9991]
[1755459347627,3.02,191.92,191.81,2.88]
[1755459347927,3.04,191.96,191.85,2.88]
[1755459348130,3.04,191.94,191.88,2.88]
[1755459348523,3.04,191.94,191.84,2.88]
[1755459348722,3.04,191.94,191.83,4.13818527]
[1755459348723,3.04,191.94,191.87,2.88]
[1755459350529,3.04,191.94,191.88,5.2083]
[1755459350726,3.04,191.94,191.89,2.88]
[1755459350927,3.04,191.94,191.83,4.13818527]
[1755459351130,3.04,191.94,191.91,2.88]
[1755459351828,3.04,191.99,191.9,2.88]
[1755459352032,3.04,191.97,191.9,2.88]
[1755459352531,3.04,191.97,191.91,2.88]
[1755459353632,3.04,191.97,191.91,8.0876]
[1755459353833,3.04,191.97,191.92,2.88]
[1755459354032,3.04,191.97,191.91,5.2076]
[1755459354234,3.04,191.97,191.92,2.88]
[1755459354734,3.04,191.97,191.94,2.88]
[1755459354930,3.04,191.99,191.94,2.88]
[1755459355128,3.04,191.97,191.94,2.88]
[1755459355627,3.04,191.97,191.88,2.88]
[1755459356432,3.04,191.97,191.89,5.208]
[1755459356734,3.04,191.97,191.9,2.88]
[1755459356930,3.04,191.97,191.9,5.2078]
[1755459357139,3.04,191.97,191.91,2.88]
[1755459358537,3.04,191.95,191.91,2.88]
[1755459358729,3.04,191.95,191.92,2.88]
[1755459360240,3.04,191.94,191.92,2.88]
[1755459360435,3.04,191.96,191.91,2.88]
[1755459360639,135.76,192.0,191.91,2.88]
[1755459360944,3.04,192.01,191.97,2.88]
[1755459361339,3.04,192.0,191.96,7.8647098]
[1755459361639,3.04,191.99,191.98,2.88]
[1755459362742,3.04,192.0,191.99,2.88]
[1755459362942,3.04,192.08,191.99,2.88]
[1755459363142,8.08464937,192.07,191.99,2.88]
[1755459363332,3.04,192.07,192.04,2.88]
[1755459363537,3.04,192.06,192.05,2.88]
[1755459363736,4.34137423,192.06,192.05,2.88]
[1755459364141,3.04,192.06,192.02,5.2046]
[1755459364337,3.04,192.05,192.04,2.88]
[1755459364840,132.48,192.11,191.98,4.13269688]
[1755459365035,3.04,192.06,192.05,2.88]
[1755459366040,3.04,192.1,192.05,2.88]
[1755459366238,3.04,192.08,192.05,2.88]
[1755459367636,3.04,192.06,192.05,2.88]
[1755459367835,3.04,192.06,192.04,5.2041]
[1755459368045,3.04,192.06,192.05,2.88]
[1755459368744,3.04,192.08,192.05,2.88]
[1755459369038,3.04,192.08,192.05,8.0839]
[1755459369243,3.04,192.08,192.06,2.88]
[1755459369446,3.04,192.08,192.07,2.88]
[1755459369642,3.04,192.1,192.02,4.13269688]
[1755459369848,3.04,192.1,192.03,2.88]
[1755459370642,3.04,192.12,192.03,2.88]
[1755459370846,3.04,192.12,191.94,4.13269688]
[1755459370847,0.03502153,192.08,192.06,4.13269688]
[1755459371047,3.04,192.14,192.07,2.88]
[1755459371644,3.04,192.13,192.1,2.88]
[1755459372344,3.04,192.13,192.1,5.24127517]
[1755459372553,3.04,192.13,192.12,2.88]
[1755459373551,3.04,192.15,192.11,2.88]
[1755459373751,3.04,192.22,192.11,2.88]
[1755459373955,9.57546385,192.21,192.11,2.88]
[1755459374258,3.04,192.19,192.11,2.88]
[1755459374451,3.04,192.19,192.14,0.03627368]
[1755459378248,2.84,192.18,192.16,2.88]
[1755459378452,2.84,192.17,192.16,2.88]
[1755459378654,131.9,192.23,192.14,0.03627368]
[1755459378856,2.84,192.18,192.17,2.88]
[1755459379657,2.84,192.18,192.16,0.03321656]
[1755459379956,2.84,192.22,192.12,2.88]
[1755459380161,2.84,192.2,192.12,2.88]
[1755459380348,2.84,192.2,192.13,0.03911048]
[1755459380657,1.30070281,192.19,192.13,0.03911048]
[1755459380859,2.84,192.2,192.13,0.03911048]
[1755459381055,1.30070281,192.19,192.13,0.03911048]
[1755459381260,2.84,192.18,192.13,0.03911048]
[1755459381461,2.84,192.18,192.13,2.91911048]
[1755459383255,1.30075759,192.17,192.13,0.03911048]
[1755459383459,135.70085157,192.16,192.13,0.03911048]
[1755459383660,4.14094114,192.15,192.07,2.88]
[1755459383859,7.84479155,192.14,192.01,2.88]
[1755459384058,2.84,192.12,192.01,2.88]
[1755459384262,2.84,192.1,192.01,2.88]
[1755459384461,2.84,192.08,192.01,2.88]
[1755459385062,0.03454974,192.06,192.01,2.88]
[1755459386467,2.84,192.05,192.01,2.88]
[1755459386655,2.84,192.05,192.0,69.78674196]
[1755459386855,2.84,192.05,192.01,2.88]
[1755459387059,349.74,192.37,192.05,2.88]
[1755459387262,9.52500405,192.36,192.24,2.88]
[1755459387465,1.29997148,192.35,192.28,2.88]
[1755459387665,481.32,192.37,192.32,2.88]
[1755459387871,1.29922419,192.36,192.32,2.88]
[1755459388173,3.70857406,192.35,192.22,2.88]
[1755459388366,136.04857406,192.34,192.22,4.13269688]
[1755459388565,0.03920344,192.3,192.23,2.88]
[1755459388962,2.84,192.29,192.23,2.88]
[1755459389267,19.76269688,192.33,192.24,4.92195098]
[1755459389565,2.84,192.31,192.25,4.92195098]
[1755459389869,2.84,192.27,192.26,1.50860162]